fUST/lending_fUST_20260531
["ID","MTS","AMOUNT","RATE_DAILY","PERIOD"]
[423513955,1780176638000,-500.0,8.219e-05,2]
[423513949,1780176638000,-500.0,8.219e-05,2]
[423513968,1780176638000,-500.0,8.493e-05,2]
[423513970,1780176638000,-500.0,8.493e-05,2]
[423513972,1780176638000,-500.0,8.493e-05,2]
[423513959,1780176638000,-711.7,8.219e-05,2]
[423513957,1780176638000,-500.0,8.219e-05,2]
[423514295,1780176672000,-1298.20313909,8e-05,2]
[423514337,1780177832000,-442.24681662,7.087e-05,2]
[423514335,1780177832000,-170.331681,6.818e-05,2]
[423514341,1780177832000,-160.0,8e-05,2]
[423514343,1780177832000,-767.27098303,8e-05,2]
[423514339,1780177832000,-169.3695595,7.896e-05,2]
[423514351,1780177832000,-2246.96246121,8e-05,2]
[423514347,1780177832000,-939.57358569,8e-05,2]
[423514349,1780177832000,-276.30885482,8e-05,2]
[423514354,1780177832000,-1093.98275846,8e-05,2]
[423514363,1780177832000,-433.45811007,8e-05,2]
[423514345,1780177832000,-4060.42641431,8e-05,2]
[423514666,1780177838000,-500.0,8.218e-05,2]
[423514660,1780177838000,-949.28781544,8e-05,2]
[423514662,1780177838000,-1414.0,8.074e-05,2]
[423514664,1780177838000,-14632.87307386,8.119e-05,2]
[423514663,1780177838000,-363.758,8.074e-05,2]
[423514665,1780177838000,-61684.25001838,8.119e-05,2]
[423514668,1780177838000,-500.0,8.219e-05,2]
[423514667,1780177838000,-200.43192912,8.218e-05,2]
[423514661,1780177838000,-160.0,8e-05,2]
[423514670,1780177838000,-500.0,8.219e-05,2]
[423514677,1780177838000,-359.70359437,8.219e-05,2]
[423514676,1780177838000,-599.47,8.219e-05,2]
[423514673,1780177838000,-500.0,8.219e-05,2]
[423514675,1780177838000,-500.0,8.219e-05,2]
[423514669,1780177838000,-500.0,8.219e-05,2]
[423514674,1780177838000,-352.69110136,8.219e-05,2]
[423514671,1780177838000,-500.0,8.219e-05,2]
[423514672,1780177838000,-500.0,8.219e-05,2]
[423514678,1780177838000,-179.91187897,8.219e-05,2]
[423515083,1780177844000,-500.0,8.219e-05,2]
[423515082,1780177844000,-184.63,8.219e-05,2]
[423515081,1780177844000,-500.0,8.219e-05,2]
[423515084,1780177844000,-500.0,8.219e-05,2]
[423515080,1780177844000,-320.08812103,8.219e-05,2]
[423515088,1780177844000,-500.0,8.219e-05,2]
[423515089,1780177844000,-549.67,8.219e-05,2]
[423515087,1780177844000,-500.0,8.219e-05,2]
[423515090,1780177844000,-1974.03,8.219e-05,2]
[423515091,1780177844000,-472.44423594,8.219e-05,2]
[423515085,1780177844000,-1082.14,8.219e-05,2]
[423515086,1780177844000,-546.32,8.219e-05,2]
[423515152,1780177846000,-1479.78423594,8.219e-05,2]
[423515151,1780177846000,-500.0,8.219e-05,2]
[423515150,1780177846000,-172.21576406,8.219e-05,2]
[423515154,1780178453000,-160.0,8e-05,2]
[423515155,1780178470000,-5000.0,8e-05,2]
[423515156,1780178487000,-160.0,8e-05,2]
[423515157,1780178503000,-5000.0,8e-05,2]
[423515158,1780178520000,-160.0,8e-05,2]
[423515159,1780178537000,-767.27098303,8e-05,2]
[423515160,1780178554000,-436.50157651,8.019e-05,2]
[423515161,1780178571000,-423.836,8.074e-05,2]
[423515196,1780179032000,-1580.76,8.219e-05,2]
[423515192,1780179032000,-500.0,8.219e-05,2]
[423515193,1780179032000,-500.0,8.219e-05,2]
[423515189,1780179032000,-500.0,8.219e-05,2]
[423515188,1780179032000,-1891.78,8.219e-05,2]
[423515191,1780179032000,-526.77,8.219e-05,2]
[423515190,1780179032000,-617.8,8.219e-05,2]
[423515183,1780179032000,-500.0,8.219e-05,2]
[423515185,1780179032000,-500.0,8.219e-05,2]
[423515186,1780179032000,-523.56,8.219e-05,2]
[423515187,1780179032000,-1037.05,8.219e-05,2]
[423515182,1780179032000,-155.159,8.219e-05,2]
[423515178,1780179032000,-500.0,8.219e-05,2]
[423515180,1780179032000,-574.49,8.219e-05,2]
[423515181,1780179032000,-500.0,8.219e-05,2]
[423515177,1780179032000,-500.0,8.219e-05,2]
[423515176,1780179032000,-500.0,8.219e-05,2]
[423515174,1780179032000,-185.0,8.131e-05,2]
[423515175,1780179032000,-443.0,8.131e-05,2]
[423515172,1780179032000,-3152.8503538,8.115e-05,2]
[423515173,1780179032000,-1689.9064055,8.115e-05,2]
[423515169,1780179032000,-160.0,8.018e-05,2]
[423515166,1780179032000,-5000.0,8e-05,2]
[423515170,1780179032000,-160.0,8.112e-05,2]
[423515171,1780179032000,-767.27098303,8.112e-05,2]
[423515167,1780179032000,-5000.0,8e-05,2]
[423515168,1780179032000,-427.77154498,8.009e-05,2]
[423515179,1780179032000,-500.0,8.219e-05,2]
[423515194,1780179032000,-500.0,8.219e-05,2]
[423515209,1780179032000,-500.0,8.219e-05,2]
[423515200,1780179032000,-1072.39,8.219e-05,2]
[423515197,1780179032000,-500.0,8.219e-05,2]
[423515225,1780179032000,-13366.02727073,8.393e-05,2]
[423515224,1780179032000,-231.5475538,8.251e-05,2]
[423515222,1780179032000,-1467.96,8.219e-05,2]
[423515221,1780179032000,-500.0,8.219e-05,2]
[423515218,1780179032000,-682.04,8.219e-05,2]
[423515220,1780179032000,-368.34165808,8.219e-05,2]
[423515219,1780179032000,-500.0,8.219e-05,2]
[423515216,1780179032000,-500.0,8.219e-05,2]
[423515215,1780179032000,-500.0,8.219e-05,2]
[423515217,1780179032000,-500.0,8.219e-05,2]
[423515213,1780179032000,-692.85,8.219e-05,2]
[423515214,1780179032000,-1775.29,8.219e-05,2]
[423515207,1780179032000,-1127.92,8.219e-05,2]
[423515223,1780179032000,-500.0,8.219e-05,2]
[423515226,1780179032000,-15922.21747022,8.393e-05,2]
[423515208,1780179032000,-516.19,8.219e-05,2]
[423515199,1780179032000,-1515.55,8.219e-05,2]
[423515201,1780179032000,-500.0,8.219e-05,2]
[423515195,1780179032000,-500.0,8.219e-05,2]
[423515204,1780179032000,-500.0,8.219e-05,2]
[423515202,1780179032000,-509.22,8.219e-05,2]
[423515198,1780179032000,-513.61,8.219e-05,2]
[423515205,1780179032000,-503.97,8.219e-05,2]
[423515206,1780179032000,-335.4127812,8.219e-05,2]
[423515211,1780179032000,-500.0,8.219e-05,2]
[423515212,1780179032000,-410.27006509,8.219e-05,2]
[423515210,1780179032000,-9167.89,8.219e-05,2]
[423515203,1780179032000,-500.0,8.219e-05,2]
[423515227,1780179033000,-311.82392788,8.393e-05,2]
[423515228,1780179033000,-1151.66394724,8.393e-05,2]
[423515246,1780179038000,-101173.45350526,8.393e-05,2]
[423515273,1780179046000,-400.0,8.219e-05,2]
[423515356,1780180232000,-353.61607577,7.998e-05,2]
[423515354,1780180232000,-470.75954524,7.998e-05,2]
[423515352,1780180232000,-425.75625776,7.958e-05,2]
[423515362,1780180232000,-375.62437899,7.998e-05,2]
[423515375,1780180232000,-666.91192371,8e-05,2]
[423515370,1780180232000,-300.0,7.999e-05,2]
[423515383,1780180232000,-160.0,8e-05,2]
[423515366,1780180232000,-39.7523673,7.999e-05,2]
[423515364,1780180232000,-260.2476327,7.999e-05,2]
[423515378,1780180232000,-5000.0,8e-05,2]
[423515386,1780180232000,-6250.78973991,8.051e-05,2]
[423515377,1780180232000,-5000.0,8e-05,2]
[423515372,1780180232000,-100.35905932,8e-05,2]
[423515381,1780180232000,-160.0,8e-05,2]
[423515368,1780180232000,-300.0,7.999e-05,2]
[423515428,1780180240000,-2684.80222921,8e-05,2]
[423515429,1780180240000,-3093.2773147,8.051e-05,2]
[423515431,1780180240000,-1038.70338955,8.051e-05,2]
[423515435,1780180240000,-6508.80197254,8.051e-05,2]
[423515432,1780180240000,-3466.50906577,8.051e-05,2]
[423515434,1780180240000,-1285.10008273,8.051e-05,2]
[423515433,1780180240000,-639.34187099,8.051e-05,2]
[423515430,1780180240000,-4017.23253637,8.051e-05,2]
[423515439,1780180241000,-1662.54163905,8.051e-05,2]
[423515437,1780180241000,-442.58507751,8.051e-05,2]
[423515438,1780180241000,-581.59161548,8.051e-05,2]
[423515436,1780180241000,-363.632055,8.051e-05,2]
[423515447,1780180244000,-1423.45161002,8.051e-05,2]
[423515451,1780180244000,-443.0,8.163e-05,2]
[423515449,1780180244000,-9925.11756773,8.051e-05,2]
[423515448,1780180244000,-4989.62090925,8.051e-05,2]
[423515455,1780180244000,-500.0,8.219e-05,2]
[423515452,1780180244000,-185.0,8.163e-05,2]
[423515454,1780180244000,-553.31153422,8.219e-05,2]
[423515453,1780180244000,-500.0,8.219e-05,2]
[423515456,1780180244000,-500.0,8.219e-05,2]
[423515457,1780180244000,-500.0,8.219e-05,2]
[423515459,1780180244000,-500.0,8.219e-05,2]
[423515458,1780180244000,-298.20313909,8.219e-05,2]
[423515461,1780180244000,-342.45043689,8.219e-05,2]
[423515460,1780180244000,-500.0,8.219e-05,2]
[423515450,1780180244000,-293.48618355,8.051e-05,2]
[423515475,1780180247000,-151.5,8.219e-05,2]
[423515473,1780180247000,-151.5,8.219e-05,2]
[423515477,1780180247000,-151.5,8.219e-05,2]
[423515476,1780180247000,-151.5,8.219e-05,2]
[423515481,1780180247000,-151.5,8.219e-05,2]
[423515480,1780180247000,-151.5,8.219e-05,2]
[423515479,1780180247000,-151.5,8.219e-05,2]
[423515474,1780180247000,-151.5,8.219e-05,2]
[423515478,1780180247000,-151.5,8.219e-05,2]
[423515471,1780180247000,-500.0,8.219e-05,2]
[423515482,1780180247000,-151.5,8.219e-05,2]
[423515469,1780180247000,-500.0,8.219e-05,2]
[423515470,1780180247000,-1812.96,8.219e-05,2]
[423515467,1780180247000,-500.0,8.219e-05,2]
[423515468,1780180247000,-500.0,8.219e-05,2]
[423515466,1780180247000,-107.66956611,8.219e-05,2]
[423515465,1780180247000,-48.92043389,8.219e-05,2]
[423515462,1780180247000,-157.54956311,8.219e-05,2]
[423515463,1780180247000,-550.56,8.219e-05,2]
[423515464,1780180247000,-500.0,8.219e-05,2]
[423515472,1780180247000,-592.06,8.219e-05,2]
[423515483,1780180247000,-242.5,8.219e-05,2]
[423515507,1780180247000,-278.86742429,8.219e-05,2]
[423515487,1780180247000,-1514.9,8.219e-05,2]
[423515489,1780180247000,-500.0,8.219e-05,2]
[423515505,1780180247000,-663.98,8.219e-05,2]
[423515506,1780180247000,-500.0,8.219e-05,2]
[423515504,1780180247000,-500.0,8.219e-05,2]
[423515503,1780180247000,-1701.32,8.219e-05,2]
[423515496,1780180247000,-500.0,8.219e-05,2]
[423515497,1780180247000,-500.0,8.219e-05,2]
[423515499,1780180247000,-8785.9,8.219e-05,2]
[423515495,1780180247000,-500.0,8.219e-05,2]
[423515494,1780180247000,-1027.71,8.219e-05,2]
[423515498,1780180247000,-500.0,8.219e-05,2]
[423515500,1780180247000,-1080.93,8.219e-05,2]
[423515490,1780180247000,-500.0,8.219e-05,2]
[423515493,1780180247000,-500.0,8.219e-05,2]
[423515486,1780180247000,-500.0,8.219e-05,2]
[423515488,1780180247000,-500.0,8.219e-05,2]
[423515484,1780180247000,-242.5,8.219e-05,2]
[423515485,1780180247000,-504.82,8.219e-05,2]
[423515492,1780180247000,-1452.4,8.219e-05,2]
[423515502,1780180247000,-500.0,8.219e-05,2]
[423515501,1780180247000,-500.0,8.219e-05,2]
[423515491,1780180247000,-500.0,8.219e-05,2]
[423515510,1780180273000,-3738.59911184,7.951e-05,2]
[423515573,1780181431000,-500.0,7.844e-05,2]
[423515579,1780181431000,-500.0,7.844e-05,2]
[423515575,1780181431000,-500.0,7.844e-05,2]
[423515564,1780181431000,-188.819796,7.669e-05,2]
[423515566,1780181431000,-420.72503651,7.713e-05,2]
[423515568,1780181431000,-500.0,7.844e-05,2]
[423515570,1780181431000,-500.0,7.844e-05,2]
[423515588,1780181431000,-500.0,7.844e-05,2]
[423515577,1780181431000,-500.0,7.844e-05,2]
[423515581,1780181431000,-187.13335031,7.844e-05,2]
[423515584,1780181431000,-312.86664969,7.844e-05,2]
[423515586,1780181431000,-500.0,7.844e-05,2]
[423515592,1780181431000,-500.0,7.844e-05,2]
[423515593,1780181431000,-500.0,7.844e-05,2]
[423515590,1780181431000,-500.0,7.844e-05,2]
[423515571,1780181431000,-500.0,7.844e-05,2]
[423515609,1780181432000,-388.84145471,7.844e-05,2]
[423515611,1780181432000,-500.0,7.844e-05,2]
[423515623,1780181432000,-21459.26405007,7.851e-05,2]
[423515619,1780181432000,-322.00744925,7.844e-05,2]
[423515607,1780181432000,-500.0,7.844e-05,2]
[423515601,1780181432000,-500.0,7.844e-05,2]
[423515605,1780181432000,-500.0,7.844e-05,2]
[423515597,1780181432000,-500.0,7.844e-05,2]
[423515599,1780181432000,-500.0,7.844e-05,2]
[423515595,1780181432000,-500.0,7.844e-05,2]
[423515625,1780181432000,-876.04006851,7.851e-05,2]
[423515603,1780181432000,-500.0,7.844e-05,2]
[423515613,1780181432000,-500.0,7.844e-05,2]
[423515621,1780181432000,-300.0,7.844e-05,2]
[423515615,1780181432000,-500.0,7.844e-05,2]
[423515617,1780181432000,-500.0,7.844e-05,2]
[423515640,1780181432000,-4569.94332153,7.851e-05,2]
[423515647,1780181432000,-1509.0502069,7.851e-05,2]
[423515636,1780181432000,-1730.17746076,7.851e-05,2]
[423515638,1780181432000,-37005.12546607,7.851e-05,2]
[423515645,1780181432000,-500.0,7.844e-05,2]
[423515649,1780181432000,-6329.51878425,7.851e-05,2]
[423515634,1780181432000,-500.0,7.844e-05,2]
[423515632,1780181432000,-117.795,7.844e-05,2]
[423515630,1780181432000,-382.205,7.844e-05,2]
[423515652,1780181432000,-648.1942693,7.851e-05,2]
[423515627,1780181432000,-49792.61055152,7.851e-05,2]
[423515643,1780181432000,-500.0,7.844e-05,2]
[423515760,1780181438000,-279.03790156,8e-05,2]
[423515756,1780181438000,-217.33496738,7.851e-05,2]
[423515754,1780181438000,-53106.20798072,7.851e-05,2]
[423515757,1780181438000,-160.0,7.861e-05,2]
[423515764,1780181438000,-500.0,8.219e-05,2]
[423515759,1780181438000,-767.27098303,7.954e-05,2]
[423515763,1780181438000,-500.0,8.219e-05,2]
[423515762,1780181438000,-163.8954543,8.157e-05,2]
[423515755,1780181438000,-40530.45865006,7.851e-05,2]
[423515761,1780181438000,-5000.0,8e-05,2]
[423515765,1780181438000,-500.0,8.219e-05,2]
[423515748,1780181438000,-252.16201003,7.844e-05,2]
[423515747,1780181438000,-247.83798997,7.844e-05,2]
[423515744,1780181438000,-500.0,7.844e-05,2]
[423515745,1780181438000,-500.0,7.844e-05,2]
[423515751,1780181438000,-500.0,7.844e-05,2]
[423515743,1780181438000,-500.0,7.844e-05,2]
[423515758,1780181438000,-160.0,7.954e-05,2]
[423515746,1780181438000,-500.0,7.844e-05,2]
[423515752,1780181438000,-500.0,7.844e-05,2]
[423515749,1780181438000,-500.0,7.844e-05,2]
[423515750,1780181438000,-500.0,7.844e-05,2]
[423515742,1780181438000,-500.0,7.844e-05,2]
[423515753,1780181438000,-500.0,7.844e-05,2]
[423515767,1780181438000,-500.0,8.219e-05,2]
[423515778,1780181438000,-553.9603979,8.219e-05,2]
[423515787,1780181438000,-500.0,8.219e-05,2]
[423515791,1780181438000,-500.0,8.219e-05,2]
[423515793,1780181438000,-500.0,8.219e-05,2]
[423515792,1780181438000,-500.0,8.219e-05,2]
[423515782,1780181438000,-500.0,8.219e-05,2]
[423515785,1780181438000,-588.22,8.219e-05,2]
[423515789,1780181438000,-500.0,8.219e-05,2]
[423515788,1780181438000,-500.0,8.219e-05,2]
[423515777,1780181438000,-500.0,8.219e-05,2]
[423515783,1780181438000,-993.84,8.219e-05,2]
[423515790,1780181438000,-1451.78,8.219e-05,2]
[423515784,1780181438000,-1737.42,8.219e-05,2]
[423515779,1780181438000,-500.0,8.219e-05,2]
[423515786,1780181438000,-500.0,8.219e-05,2]
[423515780,1780181438000,-500.0,8.219e-05,2]
[423515770,1780181438000,-428.52279241,8.219e-05,2]
[423515771,1780181438000,-500.0,8.219e-05,2]
[423515781,1780181438000,-509.57706424,8.219e-05,2]
[423515766,1780181438000,-500.0,8.219e-05,2]
[423515769,1780181438000,-527.62,8.219e-05,2]
[423515768,1780181438000,-500.0,8.219e-05,2]
[423515776,1780181438000,-500.0,8.219e-05,2]
[423515775,1780181438000,-500.0,8.219e-05,2]
[423515773,1780181438000,-500.0,8.219e-05,2]
[423515774,1780181438000,-500.0,8.219e-05,2]
[423515772,1780181438000,-157.663,8.219e-05,2]
[423515797,1780181439000,-520.30683827,8.219e-05,2]
[423515796,1780181439000,-500.0,8.219e-05,2]
[423515799,1780181439000,-933.88454862,8.219e-05,2]
[423515795,1780181439000,-500.0,8.219e-05,2]
[423515798,1780181439000,-500.0,8.219e-05,2]
[423515794,1780181439000,-1414.98,8.219e-05,2]
[423515890,1780181443000,-500.0,8.219e-05,2]
[423515882,1780181443000,-500.0,8.219e-05,2]
[423515894,1780181443000,-345.85282127,8.219e-05,2]
[423515881,1780181443000,-71.83545138,8.219e-05,2]
[423515883,1780181443000,-592.82172734,8.219e-05,2]
[423515887,1780181443000,-244.85,8.219e-05,2]
[423515884,1780181443000,-1056.72,8.219e-05,2]
[423515885,1780181443000,-500.0,8.219e-05,2]
[423515892,1780181443000,-201.85282127,8.219e-05,2]
[423515886,1780181443000,-8440.65,8.219e-05,2]
[423515888,1780181443000,-500.0,8.219e-05,2]
[423515889,1780181443000,-1651.27,8.219e-05,2]
[423515893,1780181443000,-298.14717873,8.219e-05,2]
[423515891,1780181443000,-500.0,8.219e-05,2]
[423515895,1780181446000,-154.14717873,8.219e-05,2]
[423515896,1780181446000,-657.15,8.219e-05,2]
[423515897,1780181446000,-506.0385549,8.219e-05,2]
[423515899,1780181446000,-404.89626637,8.219e-05,2]
[423515898,1780181446000,-500.0,8.219e-05,2]
[423515977,1780182632000,-106.65130925,7.65e-05,2]
[423515985,1780182632000,-277.99302976,7.65e-05,2]
[423515968,1780182632000,-401.47902559,7.65e-05,2]
[423515966,1780182632000,-500.0,7.65e-05,2]
[423515983,1780182632000,-222.00697024,7.65e-05,2]
[423515979,1780182632000,-288.54886017,7.65e-05,2]
[423515975,1780182632000,-393.34869075,7.65e-05,2]
[423515973,1780182632000,-500.0,7.65e-05,2]
[423515981,1780182632000,-211.45113983,7.65e-05,2]
[423515953,1780182632000,-382.47746309,7.65e-05,2]
[423515957,1780182632000,-500.0,7.65e-05,2]
[423515960,1780182632000,-394.47716309,7.65e-05,2]
[423515955,1780182632000,-117.52253691,7.65e-05,2]
[423515997,1780182632000,-500.0,7.65e-05,2]
[423515952,1780182632000,-200.0,7.65e-05,2]
[423515951,1780182632000,-500.0,7.65e-05,2]
[423515949,1780182632000,-169.0,7.649e-05,2]
[423515946,1780182632000,-172.197526,6.436e-05,2]
[423515948,1780182632000,-420.08267546,7.003e-05,2]
[423515963,1780182632000,-105.52283691,7.65e-05,2]
[423515999,1780182632000,-500.0,7.65e-05,2]
[423515970,1780182632000,-98.52097441,7.65e-05,2]
[423516003,1780182632000,-500.0,7.65e-05,2]
[423516036,1780182632000,-10458.55243871,7.651e-05,2]
[423515995,1780182632000,-500.0,7.65e-05,2]
[423516032,1780182632000,-194785.6728615,7.651e-05,2]
[423516030,1780182632000,-500.0,7.65e-05,2]
[423516026,1780182632000,-500.0,7.65e-05,2]
[423516020,1780182632000,-500.0,7.65e-05,2]
[423516024,1780182632000,-500.0,7.65e-05,2]
[423516028,1780182632000,-554.09875826,7.65e-05,2]
[423516017,1780182632000,-500.0,7.65e-05,2]
[423516015,1780182632000,-500.0,7.65e-05,2]
[423516034,1780182632000,-21747.42198071,7.651e-05,2]
[423516023,1780182632000,-500.0,7.65e-05,2]
[423516011,1780182632000,-500.0,7.65e-05,2]
[423515988,1780182632000,-102.51197024,7.65e-05,2]
[423515992,1780182632000,-500.0,7.65e-05,2]
[423516005,1780182632000,-500.0,7.65e-05,2]
[423516001,1780182632000,-500.0,7.65e-05,2]
[423516007,1780182632000,-500.0,7.65e-05,2]
[423516009,1780182632000,-500.0,7.65e-05,2]
[423516013,1780182632000,-500.0,7.65e-05,2]
[423516018,1780182632000,-500.0,7.65e-05,2]
[423515990,1780182632000,-507.34981567,7.65e-05,2]
[423516131,1780182638000,-160.0,7.767e-05,2]
[423516149,1780182638000,-306.66871076,8.219e-05,2]
[423516151,1780182638000,-709.21636328,8.219e-05,2]
[423516145,1780182638000,-5000.0,8e-05,2]
[423516137,1780182638000,-767.27098303,7.767e-05,2]
[423516134,1780182638000,-160.0,7.767e-05,2]
[423516139,1780182638000,-156.9711761,7.926e-05,2]
[423516141,1780182638000,-266.39565474,8e-05,2]
[423516123,1780182638000,-12913.79060295,7.651e-05,2]
[423516143,1780182638000,-5000.0,8e-05,2]
[423516147,1780182638000,-177.48157239,8.219e-05,2]
[423516129,1780182638000,-217.33496738,7.651e-05,2]
[423516121,1780182638000,-1194444.20121914,7.651e-05,2]
[423516116,1780182638000,-1947.02828019,7.651e-05,2]
[423516127,1780182638000,-75938.83665897,7.651e-05,2]
[423516166,1780182638000,-500.0,8.219e-05,2]
[423516153,1780182638000,-500.0,8.219e-05,2]
[423516158,1780182638000,-579.6210765,8.219e-05,2]
[423516119,1780182638000,-19748.29585799,7.651e-05,2]
[423516156,1780182638000,-500.0,8.219e-05,2]
[423516168,1780182638000,-157.663,8.219e-05,2]
[423516182,1780182638000,-563.72,8.219e-05,2]
[423516189,1780182638000,-500.0,8.219e-05,2]
[423516184,1780182638000,-500.0,8.219e-05,2]
[423516196,1780182638000,-215.75799331,8.219e-05,2]
[423516194,1780182638000,-1391.29,8.219e-05,2]
[423516191,1780182638000,-500.0,8.219e-05,2]
[423516180,1780182638000,-1665.03,8.219e-05,2]
[423516187,1780182638000,-500.0,8.219e-05,2]
[423516177,1780182638000,-952.43,8.219e-05,2]
[423516174,1780182638000,-500.0,8.219e-05,2]
[423516162,1780182638000,-500.0,8.219e-05,2]
[423516164,1780182638000,-505.63,8.219e-05,2]
[423516170,1780182638000,-398.89957748,8.219e-05,2]
[423516154,1780182638000,-500.0,8.219e-05,2]
[423516160,1780182638000,-500.0,8.219e-05,2]
[423516172,1780182638000,-500.0,8.219e-05,2]
[423516178,1780182638000,-500.0,8.219e-05,2]
[423516438,1780182640000,-500.0,8.219e-05,2]
[423516450,1780182640000,-500.0,8.219e-05,2]
[423516444,1780182640000,-500.0,8.219e-05,2]
[423516448,1780182640000,-500.0,8.219e-05,2]
[423516468,1780182640000,-636.75,8.219e-05,2]
[423516452,1780182640000,-629.77,8.219e-05,2]
[423516455,1780182640000,-500.0,8.219e-05,2]
[423516454,1780182640000,-500.0,8.219e-05,2]
[423516442,1780182640000,-1168.04255854,8.219e-05,2]
[423516446,1780182640000,-500.0,8.219e-05,2]
[423516434,1780182640000,-4363.60979196,8.219e-05,2]
[423516411,1780182640000,-284.24200669,8.219e-05,2]
[423516431,1780182640000,-1012.69,8.219e-05,2]
[423516413,1780182640000,-500.0,8.219e-05,2]
[423516427,1780182640000,-500.0,8.219e-05,2]
[423516415,1780182640000,-500.0,8.219e-05,2]
[423516421,1780182640000,-963.81,8.219e-05,2]
[423516419,1780182640000,-500.0,8.219e-05,2]
[423516423,1780182640000,-500.0,8.219e-05,2]
[423516417,1780182640000,-1356.03,8.219e-05,2]
[423516476,1780182640000,-500.0,8.493e-05,2]
[423516426,1780182640000,-500.0,8.219e-05,2]
[423516429,1780182640000,-500.0,8.219e-05,2]
[423516436,1780182640000,-3725.35020804,8.219e-05,2]
[423516462,1780182640000,-500.0,8.219e-05,2]
[423516440,1780182640000,-414.42744146,8.219e-05,2]
[423516470,1780182640000,-500.0,8.219e-05,2]
[423516457,1780182640000,-500.0,8.219e-05,2]
[423516508,1780182640000,-500.0,8.493e-05,2]
[423516505,1780182640000,-1391.29,8.493e-05,2]
[423516509,1780182640000,-500.0,8.493e-05,2]
[423516504,1780182640000,-500.0,8.493e-05,2]
[423516488,1780182640000,-500.0,8.493e-05,2]
[423516486,1780182640000,-500.0,8.493e-05,2]
[423516492,1780182640000,-500.0,8.493e-05,2]
[423516502,1780182640000,-500.0,8.493e-05,2]
[423516500,1780182640000,-500.0,8.493e-05,2]
[423516498,1780182640000,-500.0,8.493e-05,2]
[423516496,1780182640000,-563.72,8.493e-05,2]
[423516490,1780182640000,-952.43,8.493e-05,2]
[423516484,1780182640000,-500.0,8.493e-05,2]
[423516460,1780182640000,-500.0,8.219e-05,2]
[423516494,1780182640000,-1665.03,8.493e-05,2]
[423516464,1780182640000,-1448.46,8.219e-05,2]
[423516478,1780182640000,-500.0,8.493e-05,2]
[423516472,1780182640000,-423.836,8.3e-05,2]
[423516466,1780182640000,-500.0,8.219e-05,2]
[423516474,1780182640000,-500.0,8.493e-05,2]
[423516480,1780182640000,-500.0,8.493e-05,2]
[423516511,1780182640000,-500.0,8.493e-05,2]
[423516482,1780182640000,-505.63,8.493e-05,2]
[423516459,1780182640000,-500.0,8.219e-05,2]
[423516517,1780182641000,-963.81,8.493e-05,2]
[423516523,1780182641000,-500.0,8.493e-05,2]
[423516525,1780182641000,-500.0,8.493e-05,2]
[423516513,1780182641000,-1356.03,8.493e-05,2]
[423516515,1780182641000,-500.0,8.493e-05,2]
[423516519,1780182641000,-500.0,8.493e-05,2]
[423516529,1780182641000,-8088.96,8.493e-05,2]
[423516521,1780182641000,-500.0,8.493e-05,2]
[423516531,1780182641000,-500.0,8.493e-05,2]
[423516537,1780182641000,-500.0,8.493e-05,2]
[423516535,1780182641000,-500.0,8.493e-05,2]
[423516533,1780182641000,-1582.47,8.493e-05,2]
[423516539,1780182641000,-500.0,8.493e-05,2]
[423516541,1780182641000,-500.0,8.493e-05,2]
[423516543,1780182641000,-629.77,8.493e-05,2]
[423516547,1780182641000,-500.0,8.493e-05,2]
[423516545,1780182641000,-500.0,8.493e-05,2]
[423516549,1780182641000,-500.0,8.493e-05,2]
[423516551,1780182641000,-128.92744146,8.493e-05,2]
[423516527,1780182641000,-1012.69,8.493e-05,2]
[423516754,1780182643000,-879.79512131,8e-05,2]
[423517065,1780182646000,-500.0,8.767e-05,2]
[423517067,1780182646000,-505.63,8.767e-05,2]
[423517064,1780182646000,-500.0,8.767e-05,2]
[423517057,1780182646000,-1448.46,8.493e-05,2]
[423517061,1780182646000,-1113.10804478,8.7e-05,2]
[423517060,1780182646000,-873.06,8.493e-05,2]
[423517066,1780182646000,-500.0,8.767e-05,2]
[423517062,1780182646000,-1338.03966716,8.7e-05,2]
[423517058,1780182646000,-636.75,8.493e-05,2]